{"text_format":"2","workbook":"xlsx","n_sheets":3,"sheets":["Custo por trabalhador","Planilha de Custos","Uniformes"],"not_rendered":{"charts":0,"images":0,"macros":0,"external_links":0,"defined_names":12,"comments":1,"pivot_tables":0},"unopened":[],"bounds":{"document_bytes":16777216,"sheet_cells":100000,"run_cost":"one","rows_first":2000,"rows_last":500,"rows_between":2000,"halvings":0,"cell_chars":16384,"cell_head_chars":4096},"cells_cut":0,"cells_raw":0,"read":"whole","date_system":"1900"}

{"sheet":"Custo por trabalhador","index":0,"n_rows":417,"n_cols":7,"rows_kept":417,"cut":false,"hidden":true,"merged":[[398,0,398,3],[404,0,404,7],[406,0,406,3],[359,0,359,3],[361,0,361,3],[370,0,370,3],[379,0,379,7],[380,0,380,5],[381,0,381,1],[386,0,386,3],[395,0,395,7],[396,0,396,5],[296,0,296,3],[302,0,302,3],[308,0,308,7],[310,0,310,3],[319,0,319,7],[321,0,321,3],[332,0,332,2],[334,0,334,2],[343,0,343,5],[255,0,255,3],[256,0,257,0],[256,1,256,3],[272,0,272,7],[273,0,273,7],[275,0,275,3],[284,0,284,4],[293,0,293,7],[294,0,294,7],[221,0,221,4],[225,0,225,3],[229,0,229,7],[231,0,231,4],[235,0,235,7],[236,0,236,7],[238,0,238,6],[239,0,239,6],[240,0,241,0],[240,1,241,1],[240,2,241,2],[195,0,195,3],[199,0,199,3],[203,0,203,7],[204,0,204,7],[206,0,206,3],[210,0,210,3],[214,0,214,3],[218,0,218,7],[219,0,219,7],[166,0,166,5],[170,0,170,7],[172,0,172,4],[176,0,176,7],[177,0,177,7],[179,0,179,1],[188,0,188,7],[189,0,189,7],[191,0,191,3],[141,0,141,3],[142,4,143,13],[145,0,145,3],[149,0,149,7],[151,0,151,3],[152,0,152,2],[153,0,153,2],[155,0,155,7],[157,0,157,3],[114,0,114,3],[118,0,118,7],[119,0,119,7],[121,0,121,5],[123,0,123,4],[127,0,127,4],[131,0,131,3],[135,0,135,5],[137,0,137,3],[75,0,75,3],[79,0,79,3],[83,0,83,4],[87,0,87,4],[91,0,91,7],[92,0,92,7],[94,0,94,1],[106,0,106,3],[110,0,110,3],[47,0,47,3],[52,0,52,3],[53,0,53,5],[55,0,55,3],[64,0,64,7],[65,0,65,7],[67,0,67,6],[71,0,71,7],[73,0,73,7],[15,0,15,7],[17,0,17,3],[22,0,22,7],[23,0,23,7],[25,0,25,3],[35,0,35,7],[36,0,36,7],[38,0,38,4],[42,0,42,4],[0,0,0,7],[1,0,1,7],[2,0,2,7],[4,0,4,7],[5,0,5,7],[7,0,7,7],[8,0,8,7],[10,0,10,1],[14,0,14,7]]}
["PLANILHA DE CUSTOS E FORMAÇÃO DE PREÇOS"]
["MODELO DE FORMAÇÃO DE CUSTO MENSAL PARA UM EMPREGADO "]
["* A planilha de custos e formação de preços é ferramenta de apoio à realização de estimativas da contratação e para a análise das propostas na fase de pregão e nas prorrogações contratuais.\n* O modelo disponibilizado na Instrução Normativa n° 5, de 26 de maio de 2017, é inspiracional, devendo ser adaptado pelo órgão ou entidade contratante às suas necessidades.\n* A presente proposta visa, tão somente, auxiliar aos órgão que não possuam um modelo definido na formatação dos cálculos de direitos trabalhistas para estimativas de contratos de prestação de serviços, observando as disposições da Consolidação das Leis do Trabalho - CLT e das Convenções Coletivas de Trabalho - CCT (sendo válidos, ainda, os acordos e dissídios coletivos).\n* É responsábilidade do usuário que optar pela utilização deste modelo a conferência das fórmulas automatizadas em conformidade com as dispoções de CLT e CCT, para minimizar o risco de equívocos no cômputo das previsões financeiras.\n* Dúvidas sobre a metodologia de cálculo poderão ser esclarecidas com a leitura dos Cadernos Técnicos de divulgação de valores limites em: https://www.comprasgovernamentais.gov.br/index.php/cadernos-tecnicos-e-valores-limites."]
[]
["MÓDULO 1 - REMUNERAÇÃO"]
["* A remuneração é definida no art. 457 da Consolidação das Leis do Trabalho. \n* É composta por Salário Base, Adicionais (noturno, de insalubridade ou periculosidade) e gratificações, quando houver."]
[]
["SALÁRIO BASE"]
["* O Salário Base vem definido na Convenção Coletiva de Trabalho da categoria profissional a ser contratada para o objeto da prestação de serviço. \n* O contratante deverá observar se a CCT abrange o município de prestação de serviço e se está vigente."]
[]
["SALÁRIO BASE"]
["Motorista",2008.63]
["Cargo B"]
[]
["GRATIFICAÇÃO DE FUNÇÃO"]
["* Gratificação de função, quando houver, virá informada na Convenção Coletiva de Trabalho da categoria profissional a ser contratada. \n* O órgão contrantante deverá observar, além da existência de gratificação, se esta incidirá sobre os adicionais, devendo adaptar a planilha ao caso em concreto.\n*  Para o presente modelo foi considerada gratificação como percentual sobre o salário base e sem incidência sobre os adicionais (noturno, periculosidade ou insalubridade)."]
[]
["GRATIFICAÇÃO DE FUNÇÃO"]
["Categoria","Base de cálculo","Percentual","Valor da Gratificação"]
["Motorista",{"$f":"B12","v":2008.63},null,{"$f":"B20*C20","v":0}]
["Cargo B",{"$f":"B13","v":0},null,{"$f":"B21*C21","v":0}]
[]
["ADICIONAIS (periculosidade ou insalubridade, se houver)"]
["* Os adicionais de periculosidade ou insalubridade, em conformidade com os art. 192 e 193 da CLT, dependem da natureza do serviço a ser prestado. \n* O órgão contrantante deverá observar, além da existência de previsão em CLT, se há informações na Convenção Coletiva de Trabalho acerca dos adicionais, bem como seu percentual e a base de cálculo, devendo adaptar a planilha ao caso em concreto. "]
[]
["ADICIONAL DE XXX"]
["Categoria","Base de cálculo","Percentual","Valor"]
["Cargo A (12x36 Diurno)",null,null,{"$f":"B28*C28","v":0}]
["Cargo A (12x36 Noturno)",null,{"$f":"C28","v":0},0]
["Cargo A Cargo A (44h semanais)",null,{"$f":"C29","v":0},0]
["Cargo B (12x36 Diurno)",null,{"$f":"C30","v":0},0]
["Cargo B (12x36 Noturno)",null,{"$f":"C31","v":0},0]
["Cargo B (44h semanais)",null,{"$f":"C32","v":0},0]
[]
[]
["ADICIONAL NOTURNO"]
["* O Adicional Noturno e a Hora Noturna Reduzida, conforme art. 73 da CLT, serão pagos entre 22h e 5h do dia seguinte, sem prorrogação quando da jornada 12x36h.\n* O órgão contrantante deverá observar, além da existência do previsto em CLT, se há informações na Convenção Coletiva de Trabalho acerca da existência do percentual de adicional noturno, bem como se haverá pagamento de hora noturna reduzida e adaptar a planilha ao caso em concreto. "]
[]
["ADICIONAL NOTURNO"]
["Categoria","Base de Cálculo","Proporção","Percentual","Valor"]
["Cargo A (12x36 Noturno)",{"$f":"B12+D29","v":2008.63},{"$f":"7/12","v":0.58333333333333337},null,{"$f":"B41*C41*D41","v":0}]
["Cargo B (12x36 Noturno)",{"$f":"B13+D32","v":0},{"$f":"7/12","v":0.58333333333333337},{"$f":"D41","v":0},{"$f":"B42*C42*D42","v":0}]
["HORA NOTURNA REDUZIDA"]
["Categoria","Base de Cálculo","Proporção","Percentual","Valor"]
["Cargo A (12x36 Noturno)",null,{"$f":"1/12","v":8.3333333333333329E-2},{"$f":"1+D41","v":1},{"$f":"B45*C45*D45","v":0}]
["Cargo B (12x36 Noturno)",{"$f":"B13+D32","v":0},{"$f":"1/12","v":8.3333333333333329E-2},{"$f":"1+D42","v":1},{"$f":"B46*C46*D46","v":0}]
[]
["ADICIONAL POR TRABALHO NOTURNO"]
["Categoria","Adicional Noturno","Hora Noturna\nReduzida","Valor"]
["Cargo A (12x36 Noturno)",{"$f":"E41","v":0},0,{"$f":"SUM(B50:C50)","v":0}]
["Cargo B (12x36 Noturno)",{"$f":"E42","v":0},{"$f":"E46","v":0},{"$f":"SUM(B51:C51)","v":0}]
[]
["ADICIONAL XXX"]
["* Em caso de previsão de outros adicionais em Convenção Coletiva de Trabalho o órgão poderá utilizar este campo."]
[]
["ADICIONAL XXX"]
["Categoria","Base de cálculo","Percentual","Valor"]
["Cargo A (12x36 Diurno)"]
["Cargo A (12x36 Noturno)"]
["Cargo A (44h semanais)"]
["Cargo B (12x36 Diurno)"]
["Cargo B (12x36 Noturno)"]
["Cargo B (44h semanais)"]
[]
["MÓDULO 1 - REMUNERAÇÃO"]
["Este quadro totaliza a remuneração devida ao trabalhador, conforme previsão da Consolidação das Leis do Trabalho e valores disponíveis na Convenção Coletiva para a categoria"]
[]
["MÓDULO 1 - REMUNERAÇÃO"]
["Categoria","Salário Base","Gratificação de função","Adicional de Periculosidade ou Insalubridade","Adicional Noturno","Adicional XXX","Total"]
["Motorista (44h semanais)",{"$f":"B12","v":2008.63},{"$f":"D20","v":0},{"$f":"D30","v":0},null,{"$f":"D60","v":0},{"$f":"SUM(B70:F70)","v":2008.63}]
[]
["MÓDULO 2 - ENCARGOS E BENEFÍCIOS (ANUAIS, MENSAIS E DIÁRIOS)"]
[]
["SUBMÓDULO 2.1 – 13° SALÁRIO, FÉRIAS E ADICIONAL DE FÉRIAS"]
[]
["13° SALÁRIO\nPrevisto no Decreto 57.155, de 1965."]
["Categoria","Base de cálculo","Provisionamento Mensal","Valor"]
["Motorista (44h semanais)",{"$f":"G70","v":2008.63},{"$f":"1/12","v":8.3333333333333329E-2},{"$f":"B78*C78","v":167.38583333333332}]
[]
["FÉRIAS\nPrevisto no art. 7° da Constituição Federal"]
["Categoria","Base de cálculo","Provisionamento Mensal","Valor"]
["Motorista (44h semanais)",{"$f":"G70","v":2008.63},{"$f":"1/12","v":8.3333333333333329E-2},{"$f":"B82*C82","v":167.38583333333332}]
[]
["ADICIONAL DE FÉRIAS - 1/3 CONSTITUCIONAL"]
["Categoria","Base de cálculo","Alíquota Adicional","Provisionamento Mensal","Valor"]
["Motorista (44h semanais)",{"$f":"G70","v":2008.63},{"$f":"1/3","v":0.33333333333333331},{"$f":"1/12","v":8.3333333333333329E-2},{"$f":"B86*C86*D86","v":55.79527777777777}]
[]
["SUBMÓDULO 2.1 – 13° SALÁRIO, FÉRIAS E ADICIONAL DE FÉRIAS"]
["Categoria","13° Salário","Férias ","1/3 Constitucional","Total"]
["Motorista (44h semanais)",{"$f":"D78","v":167.38583333333332},{"$f":"D82","v":167.38583333333332},{"$f":"E86","v":55.79527777777777},{"$f":"SUM(B90:D90)","v":390.5669444444444}]
[]
["SUBMÓDULO 2.2 - ENCARGOS PREVIDENCIÁRIOS E FGTS"]
["* Previsto no art. 195 da Constituição Federal. \n* Os percentuais informados não são taxativos e deverão observar o enquadramento real das empresas prestadoras de serviço, em especial no que diz respeito ao SAT-GIIL/RAT."]
[]
["COMPOSIÇÃO DO GPS E FGTS"]
["Encargos","Percentual"]
["INSS - empregador",0.2]
["Salário-Educação",2.5000000000000001E-2]
["SAT- GIL/RAT",1.4999999999999999E-2,"RAT = 3,0 x FAP = 0,500/ IN 2110/2022"]
["SESC",1.4999999999999999E-2]
["SENAC",0.01]
["SEBRAE",6.0000000000000001E-3]
["INCRA",2E-3]
["FGTS",0.08]
["TOTAL",{"$f":"SUM(B97:B104)","v":0.35300000000000004}]
[]
["GPS - GUIA DA PREVIDÊNCIA SOCIAL"]
["Categoria","Base de cálculo","Percentual","Valor"]
["Motorista (44h semanais)",{"$f":"G70+E90","v":2399.1969444444444},{"$f":"SUM($B$97:$B$103)","v":0.27300000000000002},{"$f":"B109*C109","v":654.98076583333341}]
[]
["FGTS - FUNDO DE GARANTIA POR TEMPO DE SERVIÇO"]
["Categoria","Base de cálculo","Percentual","Valor"]
["Motorista (44h semanais)",{"$f":"G70+E90","v":2399.1969444444444},{"$f":"$B$104","v":0.08},{"$f":"B113*C113","v":191.93575555555555}]
[]
["SUBMÓDULO 2.2 - ENCARGOS PREVIDENCIÁRIOS E FGTS"]
["Categoria","GPS","FGTS","Total"]
["Motorista (44h semanais)",{"$f":"D109","v":654.98076583333341},{"$f":"D113","v":191.93575555555555},{"$f":"B117+C117","v":846.9165213888889}]
[]
["SUBMÓDULO 2.3 - BENEFÍCIOS MENSAIS E DIÁRIOS"]
["* O cálculo de benefícios mensais e diários dependerá das disposições constantes em Convenção Coletiva de Trabalho sobre os direitos negociados aos trabalhadores, observando sempre o custo efetivo a ser suportado pela Administração no contrato de prestação de serviços (descontados os valores arcados pelos empregados)."]
[]
["VALE TRANSPORTE"]
[]
["CUSTO DA PASSAGEM"]
["Categoria","Vr. Unitário","Vales por dia ","Dias efetivamente trabalhados","Custo total"]
["Motorista (44h semanais)",3.7,2,22,{"$f":"B126*C126*D126","v":162.80000000000001}]
[]
["DESCONTO DO VALE TRANSPORTE"]
["Categoria","Base de cálculo","Proporcionalidade","Percentual","Desconto"]
["Motorista (44h semanais)",{"$f":"B12","v":2008.63},1,0.06,{"$f":"B130*C130*D130","v":120.51780000000001}]
[]
["CUSTO EFETIVO DO VALE TRANSPORTE"]
["Categoria","Custo total","Valor do desconto","Custo efetivo"]
["Motorista (44h semanais)",{"$f":"E126","v":162.80000000000001},{"$f":"E130","v":120.51780000000001},{"$f":"B134-C134","v":42.282200000000003}]
[]
["VALE ALIMENTAÇÃO/REFEIÇÃO"]
[]
["VALE ALIMENTAÇÃO/REFEIÇÃO"]
["Categoria","Valor diário","Dias efetivamente trabalhados","Valor"]
["Motorista (44h semanais)",22.5,{"$f":"D126","v":22},{"$f":"B140*C140","v":495}]
[]
["DESCONTO DO VALE ALIMENTAÇÃO/REFEIÇÃO"]
["Categoria","Base de cálculo","Percentual","Desconto","Parágrafo Sexto CCT – É vedado lançar na planilha de custo e formação de preços, por ocasião de licitações e contratações diretas, a dedução do percentual de 15% (quinze por cento) do que trata o parágrafo terceiro desta cláusula."]
["Motorista (44h semanais)",{"$f":"D140","v":495},0,{"$f":"B144*C144","v":0}]
[]
["CUSTO EFETIVO DO VALE ALIMENTAÇÃO/REFEIÇÃO"]
["Categoria","Custo total","Desconto","Custo efetivo"]
["Motorista (44h semanais)",{"$f":"D140","v":495},{"$f":"D144","v":0},{"$f":"B148-C148","v":495}]
[]
["BENEFÍCIO XXX\nUtilizar este campo em caso de outros benefícios previstos em Convenção Coletiva, sempre especificando o tipo, finalidade e previsão legal do mesmo."]
[]
["BENEFÍCIO AUXÍLIO FUNERAL"]
["Categoria",null,null,"VALOR MENSAL"]
["Motorista (44h semanais)",null,null,19.8]
[]
["BENEFÍCIO YYY\nUtilizar este campo em caso de outros benefícios previstos em Convenção Coletiva, sempre especificando o tipo, finalidade e previsão legal do mesmo."]
[]
["BENEFÍCIO yyy"]
["Categoria"]
["Cargo A (12x36 Diurno)"]
["Cargo A (12x36 Noturno)"]
["Cargo A (44h semanais)"]
["Cargo B (12x36 Diurno)"]
["Cargo B (12x36 Noturno)"]
["Cargo B (44h semanais)"]
[]
["SUBMÓDULO 2.3 - BENEFÍCIOS MENSAIS E DIÁRIOS"]
["Categoria","Vale Transporte","Vale Refeição","Auxílio funeral","Benefício y","Total"]
["Motorista (44h semanais)",{"$f":"D134","v":42.282200000000003},{"$f":"D148","v":495},{"$f":"D154","v":19.8},{"$f":"D162","v":0},{"$f":"SUM(B169:E169)","v":557.08219999999994}]
[]
["MÓDULO 2 - ENCARGOS E BENEFÍCIOS (ANUAIS, MENSAIS E DIÁRIOS)"]
[]
["MÓDULO 2 - ENCARGOS E BENEFÍCIOS (ANUAIS, MENSAIS E DIÁRIOS)"]
["Categoria","Submódulo 2.1","Submódulo 2.2","Submódulo 2.3","Total"]
["Motorista (44h semanais)",{"$f":"E90","v":390.5669444444444},{"$f":"D117","v":846.9165213888889},{"$f":"F169","v":557.08219999999994},{"$f":"SUM(B175:D175)","v":1794.5656658333332}]
[]
["MÓDULO 3 - PROVISÃO PARA RESCISÃO"]
["* Este módulo destina-se a calcular o custo de possível desligamento de um empregado vinculado ao contrato de prestação de seviços. \n* Na metodologia Seges calcula-se uma probabilidade de ocorrência, por tipos de desligamentos, como fator de ponderação do custo total."]
[]
["PERCENTUAIS POR TIPO DE\n DESLIGAMENTO"]
["Tipos","Percentual"]
["Demissão \nSEM  justa Causa"]
["SEM justa Causa\nAP INDENIZADO",0.45]
["SEM justa Causa \nAP TRABALHADO",0.55000000000000004]
["Demissão\n COM  justa Causa"]
["Desligamentos \nOUTROS TIPOS"]
["TOTAL",{"$f":"SUM(B183:B186)","v":1}]
[]
["SUBMÓDULO 3.1 - AVISO PRÉVIO INDENIZADO"]
["* Quando ocorrer a demissão de uma trabalhador e a empresa não conceder prazo de aviso prévio, o trabalhador terá direito a receber o salário referente ao mês completo, conforme dispõe o art. 487 § 1º da CLT.\n* A metodologia utilizada pela Seges computa todos os direitos do trabalhador, aplicando a proporcionalidade estimada de ocorrência de aviso prévio indenizado, relizando provisionamento mensal do custo.\n* Estes custos deverão ser apreciados atentamente nos casos de prorrogaçao contratual para verificar a necessidade de sua renovação ou não.\n* Deverão, ainda, ser obsrvados os ditames da Lei nº 12.506, de 2011 e seus impactos no custo quando das prorrogações contratuais."]
[]
["AVISO PRÉVIO INDENIZADO"]
["Categoria","Base de cálculo","Provisionamento Mensal","Valor"]
["Cargo A (44h semanais)",{"$f":"G70+(E175-D109)","v":3148.2148999999999},12,{"$f":"B194/C194","v":262.35124166666668}]
[]
["MULTA DO FGTS E CONTRIBUIÇÃO SOCIAL SOBRE O AVISO PRÉVIO INDENIZADO"]
["Categoria","Base de cálculo","Percentual da \nMulta","Valor"]
["Cargo A (44h semanais)",{"$f":"D113","v":191.93575555555555},0.5,{"$f":"B198*C198","v":95.967877777777773}]
[]
["SUBMÓDULO 3.1 - CUSTO DO AVISO PRÉVIO INDENIZADO"]
["Categoria","Base de cálculo","Percentual","Valor"]
["Cargo A (44h semanais)",{"$f":"D194+D198","v":358.31911944444448},{"$f":"$B$183","v":0.45},{"$f":"B202*C202","v":161.24360375000003}]
[]
["SUBMÓDULO 3.2 - AVISO PRÉVIO TRABALHADO"]
["* Quando ocorrer a demissão de um trabalhador com aviso prévio, o trabalhador cumprirá os dias em atividade, e terá direito a receber o salário referente ao mês completo, conforme dispõe o art. 487 § 1º da CLT.\n* A metodologia utilizada pela Seges computa todos os direitos do trabalhador, aplicando a proporcionalidade estimada de ocorrência de aviso prévio trabalhado, relizando provisionamento mensal do custo.\n* Estes custos deverão ser apreciados atentamente nos casos de prorrogaçao contratual para verificar a necessidade de sua renovação ou não.\n* Deverão, ainda, ser observados os ditames da Lei nº 12.506, de 2011, e seus impactos no custo quando das prorrogações contratuais."]
[]
["AVISO PRÉVIO TRABALHADO"]
["Categoria","Base de cálculo","Provisionamento Mensal","Valor"]
["Cargo A (44h semanais)",{"$f":"G70+E175","v":3803.1956658333334},12,{"$f":"B209/C209","v":316.93297215277778}]
[]
["MULTA DO FGTS E CONTRIBUIÇÃO SOCIAL SOBRE O AVISO PRÉVIO TRABALHADO"]
["Categoria","Base de cálculo","Percentual da \nMulta","Valor"]
["Cargo A (44h semanais)",{"$f":"D113","v":191.93575555555555},0.5,{"$f":"B213*C213","v":95.967877777777773}]
[]
["SUBMÓDULO 3.2 - CUSTO DO AVISO PRÉVIO TRABALHADO"]
["Categoria","Base de cálculo","Percentual","Valor"]
["Cargo A (44h semanais)",{"$f":"D209+D213","v":412.90084993055552},{"$f":"$B$184","v":0.55000000000000004},{"$f":"B217*C217","v":227.09546746180555}]
[]
["SUBMÓDULO 3.3 - DEMISSÃO POR JUSTA CAUSA"]
["*Na hipotese de demissão por justa causa o empregado perde o direito ao pagamento de 13° salário, férias e adicional de férias, como previsto no parágrafo único do art. 146 da CLT.\n* Para estes casos,  na metodologia Seges, haverá o desconto dos valores que, por tratar-se de provisão mensal, deverão ser reduzidos da fatura da empresa contratada.\n* Igualmente, o cômputo de custos com demissão por justa causa considera a probabilidade de ocorrência desta para provisionamento."]
[]
["BASE DE CÁLCULO PARA DEMISSÃO POR JUSTA CAUSA"]
["Categoria","Valor provisionado do 13º Salário","Valor provisionado das Férias","Valor provisionado do Adicional de Férias","Valor"]
["Cargo A (44h semanais)",{"$f":"-D78","v":-167.38583333333332},{"$f":"-D82","v":-167.38583333333332},{"$f":"-E86","v":-55.79527777777777},{"$f":"SUM(B224:D224)","v":-390.5669444444444}]
[]
["SUBMÓDULO 3.3 - CUSTO DA DEMISSÃO COM JUSTA CAUSA"]
["Categoria","Base de Cálculo","Percentual","Valor"]
["Cargo A (44h semanais)",{"$f":"E224","v":-390.5669444444444},{"$f":"$B$185","v":0},{"$f":"B228*C228","v":0}]
[]
["MÓDULO 3 - PROVISÃO PARA RESCISÃO"]
[]
["MÓDULO 3 - PROVISÃO PARA RESCISÃO"]
["Categoria","Submódulo 3.1","Submódulo 3.2","Submódulo 3.3","Total"]
["Cargo A (44h semanais)",{"$f":"D202","v":161.24360375000003},{"$f":"D217","v":227.09546746180555},{"$f":"D228","v":0},{"$f":"SUM(B234:D234)","v":388.33907121180562}]
[]
["MÓDULO 4 - CUSTO DE REPOSIÇÃO DO PROFISSIONAL AUSENTE"]
["* O Custo de reposição do profissional ausente refere-se ao custo necessário para substituir, no posto de trabalho, o profissional residente quando estiver em gozo de férias ou no caso de um das ausências legais previstas no art 473 da Consolidação das Leis do Trabalho. \n* Na metodologia Seges utiliza-se uma probabilidade de ocorrência, mediante estatísticas da Relação Anual de Informações Sociais-2016 (RAIS/MTE), da Pesquisa Nacional por Amostra de Domicílios-2016 (PNAD/IBGE), do Registro Civil (IBGE)-2016.\n* São computados, então, a probabilidade de dias de ausência para cobertura, conforme escala de trabalho mensal.\n* Para jornadas jornadas 12x36h a necessidade de reposição incide somente em 50% do dias de ausência devido à escala. \n* Na jornada 44h computa-se somente a reposição nos dias úteis, portanto, 69,04% da ausência total."]
[]
["Porobabilidade de ocorrência de ausências legais, conforme previsão do art. 473 da Consolidação das Leis do Trabalho."]
["Memória de Cálculo - número de dias de reposição do profissional ausente para cada evento "]
["Categoria","Incidencia anual","Duração Legal  \nda Ausência","12x36",null,"44h"]
[null,null,null,"Proporção dias afetados","Dias de reposição","Proporção dias afetados","Dias de reposição"]
["Férias",1,30,0.5,{"$f":"(B243*C243)*D243","v":15},{"$f":"(252/365)","v":0.69041095890410964},{"$f":"(B243*C243)*F243","v":20.712328767123289}]
["Ausência justificada",1,1,1,1,1,1]
["Acidente trabalho",null,15,0.5,0,{"$f":"(252/365)","v":0.69041095890410964},0]
["Afastamento por doença",null,5,0.5,0,{"$f":"(252/365)","v":0.69041095890410964},0]
["Consulta médica filho",null,2,1,0,1,0]
["Óbitos na família",null,2,0.5,0,{"$f":"(252/365)","v":0.69041095890410964},0]
["Casamento",null,3,0.5,0,1,0]
["Doação de sangue",null,1,1,0,1,0]
["Testemunho",null,1,1,0,1,0]
["Paternidade",null,20,0.5,0,{"$f":"(252/365)","v":0.69041095890410964},0]
["Maternidade",null,180,0.5,0,{"$f":"(252/365)","v":0.69041095890410964},0]
["Consulta pré-natal",null,6,1,0,1,0]
[]
["ESTIMATIVA DA NECESSIDADE DE REPOSIÇÃO DE PROFISSIONAL"]
["Composição","ESCALAS -  Cargo A"]
[null," 12 x 36 D","12 x 36 N","44 SEM"]
["Férias",{"$f":"E243","v":15},{"$f":"E243","v":15},{"$f":"G243","v":20.712328767123289}]
["Ausência justificada",1,1,1]
["Acidente trabalho",0,0,0]
["Afastamento por doença",0,0,0]
["Consulta médica filho",0,0,0]
["Óbitos na família",0,0,0]
["Casamento",0,0,0]
["Doação de sangue",0,0,0]
["Testemunho",0,0,0]
["Paternidade",0,0,0]
["Maternidade",0,0,0]
["Consulta pré-natal",0,0,0]
["Total Para reposição",{"$f":"SUM(B259:B270)","v":16},{"$f":"SUM(C259:C270)","v":16},{"$f":"SUM(D259:D270)","v":21.712328767123289}]
[]
["SUBMÓDULO 4.1 - AUSÊNCIAS LEGAIS"]
["* O Submódulo 4.1 destina-se ao cálculo do custo estimado para a reposição de ausências legais do empregado residente.\n* Na metodologia Seges computa-se o custo total de um empregado, com direito à remuneração, 13° salário, férias, encargos e benefícios, bem como probabilidade de rescisão, para a base de cálculo do presente submódulo que, em seguida, servirá para estipular o custo diário de um profissional para a contratação. \n* Com base neste custo diário estima-se o custo mensal com reposição de profissional ausente."]
[]
["CUSTO DIÁRIO PARA O REPOSITOR"]
["Categoria","Base de cálculo","Divisor do dia","Custo diário"]
["Cargo A (12x36 Diurno)",{"$f":"#REF!+#REF!+#REF!","v":{"$error":"#REF!"}},30,{"$f":"B278/C278","v":{"$error":"#REF!"}}]
["Cargo A (12x36 Noturno)",{"$f":"#REF!+#REF!+#REF!","v":{"$error":"#REF!"}},{"$f":"C278","v":30},{"$error":"#REF!"}]
["Cargo A (44h semanais)",{"$f":"G70+E175+E234","v":4191.5347370451391},{"$f":"C279","v":30},139.7178245681713]
["Cargo B (12x36 Diurno)",{"$f":"#REF!+#REF!+#REF!","v":{"$error":"#REF!"}},{"$f":"C280","v":30},{"$error":"#REF!"}]
["Cargo B (12x36 Noturno)",{"$f":"#REF!+#REF!+#REF!","v":{"$error":"#REF!"}},{"$f":"C281","v":30},{"$error":"#REF!"}]
["Cargo B (44h semanais)",{"$f":"#REF!+#REF!+#REF!","v":{"$error":"#REF!"}},{"$f":"C282","v":30},{"$error":"#REF!"}]
[]
["SUBMÓDULO 4.1 - AUSÊNCIAS LEGAIS"]
["Categoria","Custo diário","Necessidade de Reposição","Custo anual","Custo mensal"]
["Cargo A (12x36 Diurno)",{"$f":"D278","v":{"$error":"#REF!"}},{"$f":"B271","v":16},{"$f":"B287*C287","v":{"$error":"#REF!"}},{"$f":"D287/12","v":{"$error":"#REF!"}}]
["Cargo A (12x36 Noturno)",{"$error":"#REF!"},{"$f":"C271","v":16},{"$error":"#REF!"},{"$error":"#REF!"}]
["Cargo A (44h semanais)",139.7178245681713,{"$f":"D271","v":21.712328767123289},3033.5993416513907,252.79994513761588]
["Cargo B (12x36 Diurno)",{"$error":"#REF!"},{"$f":"B271","v":16},{"$error":"#REF!"},{"$error":"#REF!"}]
["Cargo B (12x36 Noturno)",{"$error":"#REF!"},{"$f":"C271","v":16},{"$error":"#REF!"},{"$error":"#REF!"}]
["Cargo B (44h semanais)",{"$error":"#REF!"},{"$f":"D271","v":21.712328767123289},{"$error":"#REF!"},{"$error":"#REF!"}]
[]
["SUBMÓDULO 4.2 - INTRAJORNADA"]
["* O submódulo 4.2 destina-se a calcular o custo de um repositor para cobertura do tempo de concessão do intervalo para repouso e alimentação, previsto no art. 71 da Consolidação das Leis do Trabalho, ao empregado residente. \n* Na metodologia Seges, calcula-se o custo da hora de trabalho e multiplica-se pela necessidade de horas de cobertura no mês. \n* Por tratar-se de condição excepcional, dependerá de decisão do órgão contratante, bem como de disposições constantes da Convenção Coletiva quanto ao tempo de intervalo e ao adicional para pagamento.\n* Não se computa custo de reposição intrajornada para supervisores por considerar que estes não realizam a cobertura de posto de trabalho e poderiam se ausentar durante o tempo previsto em lei, definição que também deverá ser objeto de apreciação pelos órgãos contratantes."]
[]
["CUSTO POR HORA DO REPOSITOR"]
["Categoria","Base de cálculo","divisor de hora","Valor"]
["Cargo A (12x36 Diurno)",{"$f":"#REF!+#REF!+#REF!","v":{"$error":"#REF!"}},220,{"$f":"B299/C299","v":{"$error":"#REF!"}}]
["Cargo A (12x36 Noturno)",{"$f":"#REF!+#REF!+#REF!","v":{"$error":"#REF!"}},{"$f":"C299","v":220},{"$f":"B300/C300","v":{"$error":"#REF!"}}]
["Cargo A (44h semanais)",{"$f":"G70+E175+E234","v":4191.5347370451391},{"$f":"C300","v":220},{"$f":"B301/C301","v":19.052430622932452}]
[]
["SUBMÓDULO 4.2 - INTRAJORNADA"]
["Categoria","Valor da hora","Necessidade de Reposição (horas)","Valor"]
["Cargo A (12x36 Diurno)",{"$f":"D299","v":{"$error":"#REF!"}},15,{"$f":"B305*C305","v":{"$error":"#REF!"}}]
["Cargo A (12x36 Noturno)",{"$f":"D300","v":{"$error":"#REF!"}},15,{"$f":"B306*C306","v":{"$error":"#REF!"}}]
["Cargo A (44h semanais)",{"$f":"D301","v":19.052430622932452},22,{"$f":"B307*C307","v":419.15347370451394}]
[]
["MÓDULO 4 - CUSTO DE REPOSIÇÃO DO PROFISSIONAL AUSENTE"]
[]
["MÓDULO 4 - CUSTO DE REPOSIÇÃO DO PROFISSIONAL AUSENTE"]
["Categoria","Submódulo 4.1","Submódulo 4.2","Total"]
["Cargo A (12x36 Diurno)",{"$f":"E287","v":{"$error":"#REF!"}},{"$f":"D305","v":{"$error":"#REF!"}},{"$f":"B313+C313","v":{"$error":"#REF!"}}]
["Cargo A (12x36 Noturno)",{"$error":"#REF!"},{"$f":"D306","v":{"$error":"#REF!"}},{"$error":"#REF!"}]
["Cargo A (44h semanais)",252.79994513761588,{"$f":"D307","v":419.15347370451394},671.95341884212985]
["Cargo B (12x36 Diurno)",{"$error":"#REF!"},null,{"$error":"#REF!"}]
["Cargo B (12x36 Noturno)",{"$error":"#REF!"},null,{"$error":"#REF!"}]
["Cargo B (44h semanais)",{"$error":"#REF!"},null,{"$error":"#REF!"}]
[]
["MÓDULO 5 - INSUMOS DE MÃO DE OBRA"]
[]
["UNIFORMES - COMPOSIÇÃO - VALOR ANUAL "]
["Item","qte","Vr. Unitario","Valor"]
["Calça"]
["Camisa"]
["Sapato"]
["especificar demais itens"]
[]
[]
[]
[]
[]
["Custo anual por Pessoa  "]
[]
["UNIFORMES"]
["Categoria","Custo anual","Custo mensal "]
["Cargo A (12x36 Diurno)"]
["Cargo A (12x36 Noturno)"]
["Cargo A (44h semanais)"]
["Cargo B (12x36 Diurno)"]
["Cargo B (12x36 Noturno)"]
["Cargo B (44h semanais)"]
[]
["Equipamentos  "]
["Descrição","Cotação","qte","Duração dos itens \n(vida útil)","12x36 h","44 horas"]
{"$rows_empty":14}
["Valor total "]
[]
["CUSTO MENSAL DOS EQUIPAMENTOS"]
["Categoria","Custo anual","Custo mensal","Valor por empregado"]
["Cargo A (12x36 Diurno)"]
["Cargo A (12x36 Noturno)"]
["Cargo A (44h semanais)"]
["Cargo B (12x36 Diurno)"]
["Cargo B (12x36 Noturno)"]
["Cargo B (44h semanais)"]
[]
["MÓDULO 5 - INSUMOS DE MÃO DE OBRA"]
["Categoria","Custo com Uniformes","Custo com Equipamentos","Valor"]
["Cargo A (12x36 Diurno)",{"$f":"C337","v":0},{"$f":"D364","v":0},{"$f":"SUM(B373:C373)","v":0}]
["Cargo A (12x36 Noturno)",0,0,0]
["Cargo A (44h semanais)",0,0,0]
["Cargo B (12x36 Diurno)",0,0,0]
["Cargo B (12x36 Noturno)",0,0,0]
["Cargo B (44h semanais)",0,0,0]
[]
["MÓDULO 6 - CUSTOS INDIRETOS, TRIBUTOS E LUCRO"]
[]
["INFORMAÇÃO DE PERCENTUAIS ESTIMADOS DE CITL"]
["Custos Indiretos"]
["Tributos"]
["Lucro"]
[]
["MÓDULO 6 - CUSTOS INDIRETOS, TRIBUTOS E LUCRO"]
["Categoria","Base de cálculo","Percentual","Valor"]
["Cargo A (12x36 Diurno)",{"$f":"#REF!+#REF!+#REF!+D313+D373","v":{"$error":"#REF!"}},{"$f":"((1+$B$383)/(1-$B$384-$B$385))-1","v":0},{"$f":"B389*C389","v":{"$error":"#REF!"}}]
["Cargo A (12x36 Noturno)",{"$f":"#REF!+#REF!+#REF!+D314+D374","v":{"$error":"#REF!"}},0,{"$error":"#REF!"}]
["Cargo A (44h semanais)",{"$f":"G70+E175+E234+D315+D375","v":4863.4881558872694},0,0]
["Cargo B (12x36 Diurno)",{"$f":"#REF!+#REF!+#REF!+D316+D376","v":{"$error":"#REF!"}},0,{"$error":"#REF!"}]
["Cargo B (12x36 Noturno)",{"$f":"#REF!+#REF!+#REF!+D317+D377","v":{"$error":"#REF!"}},0,{"$error":"#REF!"}]
["Cargo B (44h semanais)",{"$f":"#REF!+#REF!+#REF!+D318+D378","v":{"$error":"#REF!"}},0,{"$error":"#REF!"}]
[]
["RATEIO DO Cargo B"]
["* Para os casos em que há Supervisor e este não for contratado como um posto de trabalho, a exemplo dos serviços de vigilância patrimonial, seu custo deverá ser rateado pelo total de empregados supervisionados, conforme disposição do Anexo VII-D da Insrução Normativa n° 5, de 2017."]
[]
["RATEIO DA CHEFIA DE CAMPO"]
["Categoria","Base de cálculo","Subordinados","Valor"]
["Cargo B (12x36 Diurno)",{"$f":"#REF!+#REF!+#REF!+D316+D376+D392","v":{"$error":"#REF!"}},40,{"$f":"B401/C401","v":{"$error":"#REF!"}}]
["Cargo B (12x36 Noturno)",{"$f":"#REF!+#REF!+#REF!+D317+D377+D393","v":{"$error":"#REF!"}},{"$f":"C401","v":40},{"$f":"B402/C402","v":{"$error":"#REF!"}}]
["Cargo B (44h semanais)",{"$f":"#REF!+#REF!+#REF!+D318+D378+D394","v":{"$error":"#REF!"}},{"$f":"C402","v":40},{"$f":"B403/C403","v":{"$error":"#REF!"}}]
[]
["CUSTO DO TRABALHADOR"]
[]
["CUSTO TOTAL POR TRABALHADOR"]
["Módulo","12x36 Diurno","12x36 Noturno","44h Semanais"]
["Remuneração",{"$f":"#REF!","v":{"$error":"#REF!"}},{"$f":"#REF!","v":{"$error":"#REF!"}},{"$f":"G70","v":2008.63}]
["Encargos e Benefícios",{"$f":"#REF!","v":{"$error":"#REF!"}},{"$f":"#REF!","v":{"$error":"#REF!"}},{"$f":"E175","v":1794.5656658333332}]
["Rescisão",{"$f":"#REF!","v":{"$error":"#REF!"}},{"$f":"#REF!","v":{"$error":"#REF!"}},{"$f":"E234","v":388.33907121180562}]
["Reposição do Profissional Ausente",{"$f":"D313","v":{"$error":"#REF!"}},{"$f":"D314","v":{"$error":"#REF!"}},{"$f":"D315","v":671.95341884212985}]
["Insumos Diversos",{"$f":"D373","v":0},{"$f":"D374","v":0},{"$f":"D375","v":0}]
["Custos Indiretos, Tributos e Lucro",{"$f":"D389","v":{"$error":"#REF!"}},{"$f":"D390","v":{"$error":"#REF!"}},{"$f":"D391","v":0}]
["Rateio da Chefia de Campo",{"$f":"D401","v":{"$error":"#REF!"}},{"$f":"D402","v":{"$error":"#REF!"}},{"$f":"D403","v":{"$error":"#REF!"}}]
["Valor por Empregado",{"$f":"SUM(B409:B415)","v":{"$error":"#REF!"}},{"$f":"SUM(C409:C415)","v":{"$error":"#REF!"}},{"$f":"SUM(D409:D415)","v":{"$error":"#REF!"}}]
["Valor por Posto",{"$f":"B416*2","v":{"$error":"#REF!"}},{"$f":"C416*2","v":{"$error":"#REF!"}},{"$f":"D416*1","v":{"$error":"#REF!"}}]

{"sheet":"Planilha de Custos","index":1,"n_rows":161,"n_cols":5,"rows_kept":161,"cut":false,"hidden":false,"merged":[[159,1,159,2],[34,1,34,3],[39,1,39,2],[42,1,42,4],[53,1,53,2],[56,1,56,3],[62,1,62,2],[65,1,65,3],[71,1,71,2],[74,1,74,3],[86,1,86,3],[94,1,94,3],[156,1,156,2],[158,1,158,2],[115,1,115,3],[120,1,120,2],[123,1,123,3],[129,1,129,2],[132,1,132,3],[103,1,103,2],[105,1,105,2],[108,1,108,3],[112,1,112,2],[145,1,145,2],[148,1,148,3],[13,3,13,4],[14,3,14,4],[87,1,87,3],[88,1,88,2],[92,1,92,2],[91,1,91,2],[90,1,90,2],[89,1,89,2],[1,1,1,4],[2,1,2,4],[3,1,3,4],[5,1,5,4],[6,3,6,4],[160,1,160,2],[6,8,6,9],[7,3,7,4],[7,8,7,9],[8,3,8,4],[20,1,20,3],[29,1,29,2],[32,1,32,3],[16,1,16,4],[83,1,83,2],[17,3,17,4],[18,3,18,4],[9,3,9,4],[11,1,11,4],[12,3,12,4]]}
[]
[null,"PLANILHA DE CUSTOS E FORMAÇÃO DE PREÇOS"]
[]
[null,"Nº do Processo: 59513.000252/2024"]
[]
[null,"Discriminação dos Serviços"]
[null,"A","Data de apresentação da proposta"]
[null,"B","Município","Macapá/AP"]
[null,"C","Ano do Acordo, Convenção ou Dissídio Coletivo","AP000008/2024"]
[null,"D","Nº de meses de execução contratual",12]
[]
[null,"Identificação do Serviço"]
[null,"A","Tipo de serviço","Auxiliar Administrativo II"]
[null,"B","Unidade de medida","Posto de serviço"]
[null,"C","Quantidade a contratar",10]
[]
[null,"Dados complementares para composição dos custos referente à mão de obra"]
[null,"A","Salário normativo da categoria profissional (Claúsula 3ª da CCT 2024/2024)",2066.5500000000002]
[null,"B","Categoria profissional (vinculada à execução contratual)","Auxiliar Administrativo II"]
[]
[null,"Módulo 1 - Composição da Remuneração"]
[]
[null,1,"Composição da Remuneração","Valor (R$)"]
[null,"A","Salário-Base (Jornada Reduzida)",1878.69]
[null,"B","Adicional de Periculosidade"]
[null,"C","Adicional de Insalubridade"]
[null,"D","Adicional Noturno"]
[null,"E","Adicional de Hora Noturna Reduzida"]
[null,"G","Outros (especificar)"]
[null,"Total",null,{"$f":"D24","v":1878.69}]
[]
[]
[null,"Módulo 2 - Encargos e Benefícios Anuais, Mensais e Diários"]
[]
[null,"Submódulo 2.1 - 13º (décimo terceiro) Salário, Férias e Adicional de Férias"]
[]
[null,"2.1","13º (décimo terceiro) Salário, Férias e Adicional de Férias","Valor (R$)"]
[null,"A","13º (décimo terceiro) Salário",{"$f":"D30/12","v":156.5575}]
[null,"B","Férias e Adicional de Férias",{"$f":"D38+D38/3","v":208.74333333333334}]
[null,"Total",null,{"$f":"D38+D39","v":365.30083333333334}]
[]
[]
[null,"Submódulo 2.2 - Encargos Previdenciários (GPS), Fundo de Garantia por Tempo de Serviço (FGTS) e outras contribuições."]
[]
[null,"2.2","GPS, FGTS e outras contribuições","Percentual (%)","Valor (R$)"]
[null,"A","INSS",0.2,{"$f":"($D$30+$D$40)*D46","v":448.7981666666667}]
[null,"B","Salário Educação",2.5000000000000001E-2,{"$f":"($D$30+$D$40)*D47","v":56.099770833333338}]
[null,"C","SAT (RAT = 2,00 x FAP = 1,000)",0.02,{"$f":"($D$30+$D$40)*D48","v":44.879816666666663}]
[null,"D","SESC ou SESI",1.4999999999999999E-2,33.659862499999996]
[null,"E","SENAI - SENAC",0.01,22.439908333333332]
[null,"F","SEBRAE",6.0000000000000001E-3,13.463945000000001]
[null,"G","INCRA",2E-3,4.4879816666666663]
[null,"H","FGTS",0.08,179.51926666666665]
[null,"Total ",null,{"$f":"SUM(D46:D53)","v":0.35800000000000004},{"$f":"SUM(E46:E53)","v":803.3487183333333}]
[]
[]
[null,"Submódulo 2.3 - Benefícios Mensais e Diários."]
[]
[null,"2.3","Benefícios Mensais e Diários","Valor (R$)"]
[null,"A","Transporte",{"$f":"(3.7*2*20)-D30*0.06","v":35.278599999999997}]
[null,"B","Auxílio-Refeição/Alimentação",{"$f":"25*22","v":550}]
[null,"D","Outros (especificar)"]
[null,"Total",null,{"$f":"SUM(D60:D62)","v":585.27859999999998}]
[]
[]
[null,"Quadro-Resumo do Módulo 2 - Encargos e Benefícios anuais, mensais e diários"]
[]
[null,2,"Encargos e Benefícios Anuais, Mensais e Diários","Valor (R$)"]
[null,"2.1","13º (décimo terceiro) Salário, Férias e Adicional de Férias",{"$f":"D40","v":365.30083333333334}]
[null,"2.2","GPS, FGTS e outras contribuições",{"$f":"E54","v":803.3487183333333}]
[null,"2.3","Benefícios Mensais e Diários",{"$f":"D63","v":585.27859999999998}]
[null,"Total",null,{"$f":"SUM(D69:D71)","v":1753.9281516666665}]
[]
[]
[null,"Módulo 3 - Provisão para Rescisão"]
[]
[null,3,"Provisão para Rescisão","Valor (R$)"]
[null,"A","Aviso Prévio Indenizado",{"$f":"0.417%*$D$30*(1+8.33%+11.11%)","v":9.3570935911199999}]
[null,"B","Incidência do FGTS sobre o Aviso Prévio Indenizado",{"$f":"0.033%*$D$30*(1+8.33%+11.11%)","v":0.74048942087999992}]
[null,"C","Multa do FGTS e contribuição social sobre o Aviso Prévio Indenizado",{"$f":"0.16%*$D$30*(1+8.33%+11.11%)","v":3.5902517376}]
[null,"D","Aviso Prévio Trabalhado",{"$f":"1.944%*$D$30*(1+8.33%+11.11%)","v":43.621558611839994}]
[null,"E","Incidência dos encargos do submódulo 2.2 sobre o Aviso Prévio Trabalhado",{"$f":"0.686%*$D$30*(1+8.33%+11.11%)","v":15.393204324960001}]
[null,"F","Multa do FGTS e contribuição social sobre o Aviso Prévio Trabalhado",{"$f":"3.2%*$D$30*(1+8.33%+11.11%)","v":71.805034751999997}]
[null,"Total",null,{"$f":"SUM(D78:D83)","v":144.50763243839998}]
[]
[]
[null,"Módulo 4 - Custo de Reposição do Profissional Ausente"]
[null,"Base de Cálculo do Custo do Substituto - Módulos 1 + 2 + Férias - Auxílios (V. Transporte e Alimentação)"]
[null,"Módulo 1 - Remuneração",null,{"$f":"D30","v":1878.69}]
[null,"Módulo 2 - Encargos e Benefícios",null,{"$f":"D72","v":1753.9281516666665}]
[null,"Desconto Auxílios",null,{"$f":"-(D60+D61)","v":-585.27859999999998}]
[null,"Módulo 3 - Provisão para Recisão",null,{"$f":"D84","v":144.50763243839998}]
[null,"BCCS",null,{"$f":"SUM(D89:D92)","v":3191.8471841050664}]
[]
[null,"Submódulo 4.1 - Ausências Legais"]
[]
[null,"4.1","Ausências Legais","Valor (R$)"]
[null,"A","Férias (0,926% BCCS)",{"$f":"0.926%*$D$93","v":29.556504924812916}]
[null,"B","Ausências Legais (8 faltas/ano (8 dia/30 dias) x (1/12 meses) = 0,0222 = 2,22%)",{"$f":"0.415%*$D$93","v":13.246165814036026}]
[null,"C","Licença-Paternidade ((5 dias/30dias) x (1/12 meses) x 6,24% taxa de fecundidade x 95,04% participação masculina = 0,0008 = 0,08%)",{"$f":"0.02%*$D$93","v":0.63836943682101333}]
[null,"D","Ausência por acidente de trabalho ((0,91 dias / 30 dias)x(1/12 meses) = 0,0027 = 0,27%)",{"$f":"0.051%*$D$93","v":1.6278420638935835}]
[null,"E","Ausência por doença (5,96 dias/ano IBGE. (5,96 dias/30 dias) x (1/12 meses) = 0,0166 = 1,66%)",{"$f":"0.11%*$D$93","v":3.5110319025155734}]
[null,"F","Afastamento maternidade {[(120/30)/12] x 1,416% x 54,78% x 36,80%} x 100= 0,095%",{"$f":"0.039%*$D$93","v":1.2448204018009759}]
[null,"Total ",null,{"$f":"SUM(D98:D103)","v":49.824734543880098}]
[null,"G","Incidência dos encargos do submódulo 2.2 sobre o custo de reposição do profissional ausente ",{"$f":"D104*36.8%","v":18.335502312147877}]
[null,"Total ",null,{"$f":"D104+D105","v":68.160236856027979}]
[]
[]
[null,"Submódulo 4.2 - Intrajornada"]
[]
[null,"4.2","Intrajornada","Valor (R$)"]
[null,"A","Intervalo para repouso e alimentação",0]
[null,"Total"]
[]
[]
[null,"Quadro-Resumo do Módulo 4 - Custo de Reposição do Profissional Ausente"]
[]
[null,4,"Custo de Reposição do Profissional Ausente","Valor (R$)"]
[null,"4.1","Ausências Legais",{"$f":"D106","v":68.160236856027979}]
[null,"4.2","Intrajornada",0]
[null,"Total",null,{"$f":"D119+D120","v":68.160236856027979}]
[]
[]
[null,"Módulo 5 - Insumos Diversos"]
[]
[null,5,"Insumos Diversos","Valor (R$)"]
[null,"A","Uniformes",{"$f":"Uniformes!J10","v":60.629305555555554}]
[null,"B","Equipamentos",{"$f":"Uniformes!J18","v":24.693022222222222}]
[null,"C","Outros (Cláus. 42, páragrafo único ACT - despesas relacionadas à segurança e medicina do trabalho)",40]
[null,"Total ",null,{"$f":"SUM(D127:D129)","v":125.32232777777777}]
[]
[]
[null,"Módulo 6 - Custos Indiretos, Tributos e Lucro"]
[]
[null,6,"Custos Indiretos, Tributos e Lucro","Percentual (%)","Valor (R$)"]
[null,"A","Custos Indiretos",5,{"$f":"D157*D136%","v":198.53041743694362}]
[null,"B","Lucro",10,{"$f":"(D157+E136)*D137%","v":416.91387661758165}]
[null,"C","Tributos (Coeficiente: (1 - (% tributos) ): 1 - 0,0865 = 0,9135)",0.14249999999999999,{"$f":"($D$157+$E$136+$E$137)/(1-D138)*D138","v":762.11370448753257}]
[null,null,"Cálculo do tributo: (Base de Cálculo) / 0,9135 x Alíquota"]
[null,null,"C.1. Tributos Federais (especificar)"]
[null,null,"PIS",1.65,{"$f":"($D$157+$E$136+$E$137)/0.9135*D141%","v":82.835105206448915}]
[null,null,"COFINS",7.6,{"$f":"($D$157+$E$136+$E$137)/0.9135*D142%","v":381.54351489031012}]
[null,null,"C.2. Tributos Estaduais (especificar)"]
[null,null,"C.3. Tributos Municipais (especificar)"]
[null,null,"ISS",5,{"$f":"($D$157+$E$136+$E$137)/0.9135*D145%","v":251.01547032257247}]
[null,"Total ",null,null,{"$f":"SUM(E136:E138)","v":1377.5579985420577}]
[]
[]
[null,"2. QUADRO-RESUMO DO CUSTO POR EMPREGADO"]
[]
[null,null,"Mão de obra vinculada à execução contratual (valor por empregado)","Valor (R$)"]
[null,"A","Módulo 1 - Composição da Remuneração",{"$f":"D30","v":1878.69}]
[null,"B","Módulo 2 - Encargos e Benefícios Anuais, Mensais e Diários",{"$f":"D72","v":1753.9281516666665}]
[null,"C","Módulo 3 - Provisão para Rescisão",{"$f":"D84","v":144.50763243839998}]
[null,"D","Módulo 4 - Custo de Reposição do Profissional Ausente",{"$f":"D121","v":68.160236856027979}]
[null,"E","Módulo 5 - Insumos Diversos",{"$f":"D130","v":125.32232777777777}]
[null,"Subtotal (A + B +C+ D+E)",null,{"$f":"SUM(D152:D156)","v":3970.6083487388723}]
[null,"F","Módulo 6 – Custos Indiretos, Tributos e Lucro",{"$f":"E146","v":1377.5579985420577}]
[null,"Valor Total por Empregado/mês",null,{"$f":"D157+D158","v":5348.1663472809305}]
[null,"Valor Total por Empregado/Ano",null,{"$f":"D159*12","v":64177.996167371166}]
[null,"Valor Total 10 Empregado/Ano",null,{"$f":"D160*10","v":641779.96167371166}]

{"sheet":"Uniformes","index":2,"n_rows":18,"n_cols":15,"rows_kept":18,"cut":false,"hidden":false,"merged":[[3,14,3,16],[11,1,11,9],[1,1,1,9],[1,11,1,16],[2,14,2,16]]}
[]
[null,"UNIFORME",{"$nulls":9},"Descontos Salariais - Cláusula Sexta do ACT"]
[null,"Item","Descrição/Especificação","QTD ANUAL","Orçamento 1","Orçamento 2","Orçamento 3","Orçamento 4","Média","Valor/ano",null,"Salário base da função","Valor da hora","Jornada reduzida","Salário da Jornada Reduzida"]
[null,1,"Camisa social manga curta",4,69.7,69.7,68.3,46.89,{"$f":"AVERAGE(E4:H4)","v":63.647499999999994},{"$f":"I4*D4","v":254.58999999999997},null,2066.5500000000002,{"$f":"L4/220","v":9.3934090909090919},{"$f":"(40/6)*30","v":200},{"$f":"M4*N4","v":1878.6818181818185}]
[null,2,"Calça social",4,69.900000000000006,74.790000000000006,68.989999999999995,69.7,{"$f":"AVERAGE(E5:H5)","v":70.844999999999999},{"$f":"I5*D5","v":283.38}]
[null,3,"Sapato",2,62.99,59.9,74.989999999999995,56.69,63.642499999999998,127.285]
[null,4,"Meia social",4,16.899999999999999,10.8,9.6999999999999993,"-",12.466666666666667,49.866666666666667]
[null,5,"Cracha",1,7.5,16.989999999999998,12.8,"-",12.43,12.43]
[{"$nulls":8},"Total/ano",{"$f":"SUM(J4:J8)","v":727.55166666666662}]
[{"$nulls":8},"Total/mês",{"$f":"J9/12","v":60.629305555555554}]
[]
[null,"EQUIPAMENTOS"]
[null,"Item","Descrição","Quantidade","Orçamento 1","Orçamento 2","Orçamento 3","Média","Valor a depreciar (80%)","Valor depreciação (20%)"]
[null,1,"Notebook",1,1979.1,1563.08,1935.12,{"$f":"AVERAGE(E14:G14)","v":1825.7666666666664},{"$f":"H14*80%","v":1460.6133333333332},{"$f":"I14*20%","v":292.12266666666665}]
[null,2,"Mouse",2,7.9,26.32,7.99,{"$f":"AVERAGE(E15:G15)","v":14.07},{"$f":"H15*80%","v":11.256},{"$f":"I15*20%","v":2.2512000000000003}]
[null,3,"Pad Mouse",2,11.99,10.99,13.44,{"$f":"AVERAGE(E16:G16)","v":12.14},{"$f":"H16*80%","v":9.7120000000000015},{"$f":"I16*20%","v":1.9424000000000003}]
[{"$nulls":8},"Valor Total/ano",{"$f":"SUM(J14:J16)","v":296.31626666666665}]
[{"$nulls":8},"Valor Total/mês",{"$f":"J17/12","v":24.693022222222222}]